[Event "Early-Titled-Tuesday-Blitz-August-29-2023"]
[Site "Chess.com"]
[Date "2023.08.29"]
[Round "1"]
[White "MFBerna"]
[Black "rochaaaaaaaaaa"]
[Result "1/2-1/2"]
[WhiteElo "2573"]
[BlackElo "2208"]
[TimeControl "180+1"]
[EndTime "8:06:15 PDT"]
[Termination "Game drawn by repetition"]

1. e4 {[%clk 0:03:00]} 1... c6 {[%clk 0:02:59.6]} 2. Nf3 {[%clk 0:03:00.1]} 2...
d5 {[%clk 0:02:59.6]} 3. Nc3 {[%clk 0:03:00]} 3... dxe4 {[%clk 0:02:58.7]} 4.
Nxe4 {[%clk 0:03:00.1]} 4... Nf6 {[%clk 0:02:59.4]} 5. Qe2 {[%clk 0:03:00.5]}
5... Na6 {[%clk 0:02:59.1]} 6. d4 {[%clk 0:02:48.5]} 6... Nxe4 {[%clk
0:02:58.6]} 7. Qxe4 {[%clk 0:02:48.6]} 7... Qd5 {[%clk 0:02:58.6]} 8. Qxd5
{[%clk 0:02:43.7]} 8... cxd5 {[%clk 0:02:57.4]} 9. c3 {[%clk 0:02:42.6]} 9...
Bf5 {[%clk 0:02:55.7]} 10. Bb5+ {[%clk 0:02:40.7]} 10... Kd8 {[%clk 0:02:53.8]}
11. Ne5 {[%clk 0:02:35.1]} 11... Be6 {[%clk 0:02:46.2]} 12. O-O {[%clk 0:02:35]}
12... Nc7 {[%clk 0:02:43.5]} 13. Be2 {[%clk 0:02:34.2]} 13... f6 {[%clk
0:02:40.9]} 14. Nd3 {[%clk 0:02:34.4]} 14... Bf7 {[%clk 0:02:40.4]} 15. Bf3
{[%clk 0:02:26.3]} 15... e6 {[%clk 0:02:30.6]} 16. Re1 {[%clk 0:02:25.7]} 16...
b6 {[%clk 0:02:20.3]} 17. a4 {[%clk 0:02:25.3]} 17... Bd6 {[%clk 0:02:14.3]} 18.
a5 {[%clk 0:02:25.3]} 18... Kd7 {[%clk 0:02:13.7]} 19. Be3 {[%clk 0:02:16.8]}
19... Rhb8 {[%clk 0:02:08.2]} 20. g3 {[%clk 0:02:08]} 20... Bg6 {[%clk
0:02:06.5]} 21. Nf4 {[%clk 0:02:02.6]} 21... Bf7 {[%clk 0:02:01.1]} 22. Kg2
{[%clk 0:01:51.7]} 22... bxa5 {[%clk 0:01:57.1]} 23. Nd3 {[%clk 0:01:51.1]}
23... Bg6 {[%clk 0:01:55.4]} 24. Be2 {[%clk 0:01:39.9]} 24... Bxd3 {[%clk
0:01:53.6]} 25. Bxd3 {[%clk 0:01:40.8]} 25... Rxb2 {[%clk 0:01:53.8]} 26. Rxa5
{[%clk 0:01:41]} 26... h6 {[%clk 0:01:43.1]} 27. Rea1 {[%clk 0:01:40.3]} 27...
a6 {[%clk 0:01:43.5]} 28. Bxa6 {[%clk 0:01:22.5]} 28... Nxa6 {[%clk 0:01:40.8]}
29. Rxa6 {[%clk 0:01:23.4]} 29... Rxa6 {[%clk 0:01:37.8]} 30. Rxa6 {[%clk
0:01:24.3]} 30... Rb7 {[%clk 0:01:38]} 31. Kf3 {[%clk 0:01:23]} 31... Rc7 {[%clk
0:01:37.9]} 32. Bd2 {[%clk 0:01:20.7]} 32... e5 {[%clk 0:01:29.2]} 33. Ke2
{[%clk 0:01:20.2]} 33... Ke6 {[%clk 0:01:21.2]} 34. f3 {[%clk 0:01:09.6]} 34...
h5 {[%clk 0:01:20.9]} 35. Kd3 {[%clk 0:01:07.8]} 35... Rb7 {[%clk 0:01:19.1]}
36. Bc1 {[%clk 0:01:00.4]} 36... Ke7 {[%clk 0:01:13.6]} 37. Ra5 {[%clk 0:00:53]}
37... Ke6 {[%clk 0:01:07]} 38. Ra6 {[%clk 0:00:52.6]} 38... Ke7 {[%clk
0:01:07.1]} 39. dxe5 {[%clk 0:00:51.2]} 39... fxe5 {[%clk 0:01:06.1]} 40. Bg5+
{[%clk 0:00:50.6]} 40... Ke6 {[%clk 0:01:06.3]} 41. Be3 {[%clk 0:00:44.9]} 41...
Ke7 {[%clk 0:01:03.6]} 42. Bg5+ {[%clk 0:00:33.1]} 42... Ke6 {[%clk 0:01:03.7]}
43. Be3 {[%clk 0:00:33.2]} 43... Ke7 {[%clk 0:01:04]} 44. Bg5+ {[%clk
0:00:33.5]} 1/2-1/2

[Event "Early-Titled-Tuesday-Blitz-August-29-2023"]
[Site "Chess.com"]
[Date "2023.08.29"]
[Round "1"]
[White "HamedWafa4"]
[Black "JiiHart"]
[Result "1-0"]
[WhiteElo "2557"]
[BlackElo "2103"]
[TimeControl "180+1"]
[EndTime "8:06:15 PDT"]
[Termination "HamedWafa4 won by resignation"]

1. e4 {[%clk 0:03:00.9]} 1... c5 {[%clk 0:02:59.4]} 2. Nf3 {[%clk 0:02:56.6]}
2... Nc6 {[%clk 0:02:59.5]} 3. Bb5 {[%clk 0:02:45.1]} 3... e6 {[%clk 0:02:59.1]}
4. Bxc6 {[%clk 0:02:42.7]} 4... bxc6 {[%clk 0:02:59.3]} 5. O-O {[%clk
0:02:41.4]} 5... Ne7 {[%clk 0:02:59.3]} 6. b3 {[%clk 0:02:32.1]} 6... Ng6 {[%clk
0:02:57.6]} 7. Bb2 {[%clk 0:02:30.6]} 7... d6 {[%clk 0:02:37.4]} 8. e5 {[%clk
0:02:29.7]} 8... d5 {[%clk 0:02:33.7]} 9. d3 {[%clk 0:02:28.2]} 9... Be7 {[%clk
0:02:32.4]} 10. c4 {[%clk 0:02:26.8]} 10... O-O {[%clk 0:02:31.6]} 11. Nc3
{[%clk 0:02:20.9]} 11... Qc7 {[%clk 0:02:24.8]} 12. Na4 {[%clk 0:02:19.6]} 12...
Bd7 {[%clk 0:01:44.9]} 13. Re1 {[%clk 0:02:14.1]} 13... Qa5 {[%clk 0:00:49.5]}
14. Qd2 {[%clk 0:02:06.7]} 14... Qxd2 {[%clk 0:00:47.4]} 15. Nxd2 {[%clk
0:02:07.6]} 15... f6 {[%clk 0:00:33.1]} 16. exf6 {[%clk 0:02:05.4]} 16... gxf6
{[%clk 0:00:24.5]} 17. Ba3 {[%clk 0:02:04.9]} 17... e5 {[%clk 0:00:22.2]} 18.
Bxc5 {[%clk 0:02:03]} 18... a5 {[%clk 0:00:16]} 19. Bxe7 {[%clk 0:02:01.8]}
19... Nxe7 {[%clk 0:00:16.6]} 20. Nc5 {[%clk 0:02:01.8]} 20... Bf5 {[%clk
0:00:14]} 21. Nf1 {[%clk 0:01:54.2]} 21... Rfd8 {[%clk 0:00:13.8]} 22. Ne3
{[%clk 0:01:49.8]} 22... Bg6 {[%clk 0:00:11.9]} 23. Ng4 {[%clk 0:01:49.3]} 23...
Rd6 {[%clk 0:00:11.2]} 24. f4 {[%clk 0:01:49.3]} 24... e4 {[%clk 0:00:10.2]} 25.
dxe4 {[%clk 0:01:48.3]} 25... dxe4 {[%clk 0:00:09.9]} 26. Nxe4 {[%clk
0:01:48.5]} 26... Bxe4 {[%clk 0:00:09.3]} 27. Rxe4 {[%clk 0:01:49.1]} 27... Nf5
{[%clk 0:00:08.7]} 28. Rae1 {[%clk 0:01:48.4]} 28... Rad8 {[%clk 0:00:08]} 29.
Re6 {[%clk 0:01:47.8]} 29... Kf7 {[%clk 0:00:06.1]} 30. Rxd6 {[%clk 0:01:45]}
30... Rxd6 {[%clk 0:00:05.9]} 31. Ne3 {[%clk 0:01:44.8]} 31... Nxe3 {[%clk
0:00:05.4]} 32. Rxe3 {[%clk 0:01:45.7]} 32... Rd2 {[%clk 0:00:05.7]} 33. a3
{[%clk 0:01:41.5]} 33... Rb2 {[%clk 0:00:05.6]} 34. h3 {[%clk 0:01:40.4]} 34...
Rb1+ {[%clk 0:00:05.5]} 35. Kh2 {[%clk 0:01:40.5]} 35... Ra1 {[%clk 0:00:06]}
36. a4 {[%clk 0:01:34.9]} 36... Rb1 {[%clk 0:00:06.4]} 37. Kg3 {[%clk
0:01:34.4]} 37... Rb2 {[%clk 0:00:06.7]} 38. Kf3 {[%clk 0:01:34.3]} 38... Rb1
{[%clk 0:00:07.1]} 39. g4 {[%clk 0:01:34.8]} 39... Rb2 {[%clk 0:00:07.3]} 40.
Ke4 {[%clk 0:01:35.3]} 40... Rb1 {[%clk 0:00:07.6]} 41. Kd4 {[%clk 0:01:35.7]}
41... Rd1+ {[%clk 0:00:05.3]} 42. Kc5 {[%clk 0:01:35.5]} 42... Rb1 {[%clk
0:00:04.6]} 43. Kxc6 {[%clk 0:01:35.2]} 1-0

[Event "Early-Titled-Tuesday-Blitz-August-29-2023"]
[Site "Chess.com"]
[Date "2023.08.29"]
[Round "1"]
[White "Orest_Vovk"]
[Black "Firouzja2003"]
[Result "0-1"]
[WhiteElo "2530"]
[BlackElo "3071"]
[TimeControl "180+1"]
[EndTime "8:06:16 PDT"]
[Termination "Firouzja2003 won on time"]

1. h4 {[%clk 0:02:57.3]} 1... d5 {[%clk 0:02:59.4]} 2. h5 {[%clk 0:02:57.7]}
2... e5 {[%clk 0:02:59.7]} 3. h6 {[%clk 0:02:58]} 3... Nxh6 {[%clk 0:02:59.9]}
4. d4 {[%clk 0:02:58.3]} 4... Nc6 {[%clk 0:02:55.4]} 5. Bxh6 {[%clk 0:02:56.9]}
5... gxh6 {[%clk 0:02:55.5]} 6. dxe5 {[%clk 0:02:57.2]} 6... Nxe5 {[%clk
0:02:55.7]} 7. Nf3 {[%clk 0:02:57.3]} 7... Bg7 {[%clk 0:02:54.8]} 8. Nxe5 {[%clk
0:02:56.6]} 8... Bxe5 {[%clk 0:02:54.8]} 9. Nc3 {[%clk 0:02:57.2]} 9... c6
{[%clk 0:02:45.9]} 10. Rxh6 {[%clk 0:02:49.1]} 10... Qb6 {[%clk 0:02:45.5]} 11.
Rb1 {[%clk 0:02:39.8]} 11... Be6 {[%clk 0:02:25.2]} 12. g3 {[%clk 0:02:22.6]}
12... O-O-O {[%clk 0:02:17]} 13. Bh3 {[%clk 0:02:19.4]} 13... Bxh3 {[%clk
0:02:13.2]} 14. Rxh3 {[%clk 0:02:20.3]} 14... Qa5 {[%clk 0:02:02.3]} 15. Qd2
{[%clk 0:01:52.4]} 15... d4 {[%clk 0:02:00.5]} 16. Ne4 {[%clk 0:01:39.1]} 16...
Qxa2 {[%clk 0:02:00.3]} 17. Qd1 {[%clk 0:01:31]} 17... Kb8 {[%clk 0:01:27.2]}
18. Kf1 {[%clk 0:01:21]} 18... h6 {[%clk 0:01:22.8]} 19. Rh5 {[%clk 0:01:14]}
19... Bc7 {[%clk 0:01:17]} 20. Ra1 {[%clk 0:01:04.3]} 20... Qe6 {[%clk
0:01:08.4]} 21. Nc5 {[%clk 0:00:55.4]} 21... Qg6 {[%clk 0:01:01.3]} 22. Rh4
{[%clk 0:00:34.7]} 22... Rd5 {[%clk 0:01:01.2]} 23. Nd3 {[%clk 0:00:28.1]} 23...
Bxg3 {[%clk 0:00:57.6]} 24. Nf4 {[%clk 0:00:05.3]} 24... Bxf4 {[%clk 0:00:55.6]}
25. Rxf4 {[%clk 0:00:06.2]} 25... Rg8 {[%clk 0:00:55.7]} 26. Ke1 {[%clk
0:00:04.9]} 26... Qg1+ {[%clk 0:00:54.7]} 27. Kd2 {[%clk 0:00:05.2]} 27... Qg5
{[%clk 0:00:55.6]} 28. e3 {[%clk 0:00:04.1]} 28... dxe3+ {[%clk 0:00:56.2]} 29.
Kxe3 {[%clk 0:00:04.6]} 29... Rxd1 {[%clk 0:00:56.1]} 0-1

[Event "Early-Titled-Tuesday-Blitz-August-29-2023"]
[Site "Chess.com"]
[Date "2023.08.29"]
[Round "1"]
[White "twofoxniel"]
[Black "AlexandraSamaganova"]
[Result "1-0"]
[WhiteElo "2654"]
[BlackElo "2338"]
[TimeControl "180+1"]
[EndTime "8:06:17 PDT"]
[Termination "twofoxniel won on time"]

1. e4 {[%clk 0:03:00.9]} 1... c5 {[%clk 0:02:58]} 2. c3 {[%clk 0:03:00.3]} 2...
Nf6 {[%clk 0:02:56.8]} 3. e5 {[%clk 0:03:00.4]} 3... Nd5 {[%clk 0:02:56.2]} 4.
d4 {[%clk 0:03:00.9]} 4... cxd4 {[%clk 0:02:52.9]} 5. Nf3 {[%clk 0:03:01.2]}
5... Nc6 {[%clk 0:02:32.7]} 6. cxd4 {[%clk 0:02:59.5]} 6... d6 {[%clk
0:02:31.4]} 7. Bc4 {[%clk 0:02:59.3]} 7... e6 {[%clk 0:02:03.6]} 8. O-O {[%clk
0:02:58.1]} 8... Be7 {[%clk 0:01:57.9]} 9. Qe2 {[%clk 0:02:57.5]} 9... O-O
{[%clk 0:01:54.4]} 10. Nc3 {[%clk 0:02:51.1]} 10... Nxc3 {[%clk 0:01:40.2]} 11.
bxc3 {[%clk 0:02:52]} 11... dxe5 {[%clk 0:01:37.5]} 12. dxe5 {[%clk 0:02:52]}
12... b6 {[%clk 0:01:24.8]} 13. Rd1 {[%clk 0:02:48.2]} 13... Qc7 {[%clk
0:01:23.6]} 14. Bd3 {[%clk 0:02:46.2]} 14... Bb7 {[%clk 0:01:15.8]} 15. Qe4
{[%clk 0:02:27.1]} 15... g6 {[%clk 0:01:14.2]} 16. Bh6 {[%clk 0:02:25.4]} 16...
Rfd8 {[%clk 0:01:13.5]} 17. Qf4 {[%clk 0:02:21.3]} 17... Rd5 {[%clk 0:00:34]}
18. Be4 {[%clk 0:02:15.6]} 18... Rxd1+ {[%clk 0:00:32.6]} 19. Rxd1 {[%clk
0:02:15.1]} 19... Rd8 {[%clk 0:00:32.9]} 20. Re1 {[%clk 0:02:11.3]} 20... Na5
{[%clk 0:00:22.1]} 21. Bxb7 {[%clk 0:02:06.8]} 21... Nxb7 {[%clk 0:00:22.4]} 22.
Ng5 {[%clk 0:01:47.4]} 22... Bf8 {[%clk 0:00:15.3]} 23. Bxf8 {[%clk 0:01:32.4]}
23... Rxf8 {[%clk 0:00:14.5]} 24. Ne4 {[%clk 0:01:32.9]} 24... f5 {[%clk
0:00:09.8]} 25. Ng5 {[%clk 0:01:25.3]} 25... Qd7 {[%clk 0:00:03.5]} 26. h4
{[%clk 0:01:21.5]} 26... h6 {[%clk 0:00:03.7]} 27. Nf3 {[%clk 0:01:21.4]} 27...
Kg7 {[%clk 0:00:04]} 28. Nd4 {[%clk 0:01:20.4]} 28... Nc5 {[%clk 0:00:03.9]} 29.
Re3 {[%clk 0:01:19.9]} 29... Qd5 {[%clk 0:00:03.6]} 30. c4 {[%clk 0:01:12.9]}
30... Qe4 {[%clk 0:00:03.8]} 31. Rxe4 {[%clk 0:01:12.1]} 31... Nxe4 {[%clk
0:00:03.2]} 32. Nxe6+ {[%clk 0:01:11.2]} 1-0

[Event "Early-Titled-Tuesday-Blitz-August-29-2023"]
[Site "Chess.com"]
[Date "2023.08.29"]
[Round "1"]
[White "joppie2"]
[Black "NovozhilovSemen"]
[Result "1-0"]
[WhiteElo "2943"]
[BlackElo "2497"]
[TimeControl "180+1"]
[EndTime "8:06:18 PDT"]
[Termination "joppie2 won by checkmate"]

1. c4 {[%clk 0:03:00.9]} 1... c5 {[%clk 0:02:56.6]} 2. Nf3 {[%clk 0:02:55.7]}
2... Nc6 {[%clk 0:02:56.5]} 3. Nc3 {[%clk 0:02:53.7]} 3... d6 {[%clk 0:02:56.3]}
4. d4 {[%clk 0:02:52.1]} 4... cxd4 {[%clk 0:02:53.7]} 5. Nxd4 {[%clk 0:02:52.3]}
5... Nf6 {[%clk 0:02:54.3]} 6. g3 {[%clk 0:02:50.2]} 6... Bd7 {[%clk 0:02:49.1]}
7. Bg2 {[%clk 0:02:49.6]} 7... Nxd4 {[%clk 0:02:49]} 8. Qxd4 {[%clk 0:02:48.9]}
8... Bc6 {[%clk 0:02:49.6]} 9. e4 {[%clk 0:02:43.1]} 9... e6 {[%clk 0:02:45.9]}
10. O-O {[%clk 0:02:42.5]} 10... Be7 {[%clk 0:02:46.2]} 11. b3 {[%clk 0:02:43]}
11... O-O {[%clk 0:02:46.3]} 12. Bb2 {[%clk 0:02:43.5]} 12... Qd7 {[%clk
0:02:35]} 13. Rad1 {[%clk 0:02:42.1]} 13... Rfd8 {[%clk 0:02:34.7]} 14. h3
{[%clk 0:02:37.2]} 14... Ne8 {[%clk 0:02:29.6]} 15. Qe3 {[%clk 0:02:36.2]} 15...
Nc7 {[%clk 0:02:26.7]} 16. Rd2 {[%clk 0:02:36.1]} 16... b5 {[%clk 0:02:20.3]}
17. c5 {[%clk 0:02:30.8]} 17... d5 {[%clk 0:02:06.8]} 18. exd5 {[%clk
0:02:30.4]} 18... exd5 {[%clk 0:02:07.7]} 19. Rfd1 {[%clk 0:02:27.6]} 19... Qe6
{[%clk 0:00:59.9]} 20. Qf4 {[%clk 0:02:19.7]} 20... Rac8 {[%clk 0:00:57.8]} 21.
b4 {[%clk 0:02:16.2]} 21... Bf6 {[%clk 0:00:54.9]} 22. Ne2 {[%clk 0:02:16.7]}
22... Bxb2 {[%clk 0:00:46.3]} 23. Rxb2 {[%clk 0:02:17.6]} 23... Qg6 {[%clk
0:00:42.1]} 24. Nd4 {[%clk 0:02:17.1]} 24... Ne6 {[%clk 0:00:42.5]} 25. Qg4
{[%clk 0:02:12]} 25... Qxg4 {[%clk 0:00:28.3]} 26. hxg4 {[%clk 0:02:11.6]} 26...
Nxd4 {[%clk 0:00:29.2]} 27. Rxd4 {[%clk 0:02:11.4]} 27... Rc7 {[%clk 0:00:28.6]}
28. Rbd2 {[%clk 0:02:11.7]} 28... Rcd7 {[%clk 0:00:28.7]} 29. g5 {[%clk
0:02:12.2]} 29... a5 {[%clk 0:00:18.2]} 30. bxa5 {[%clk 0:02:08]} 30... Kf8
{[%clk 0:00:18.3]} 31. f4 {[%clk 0:02:04.3]} 31... Ke7 {[%clk 0:00:18.6]} 32.
Re2+ {[%clk 0:02:01.3]} 32... Kf8 {[%clk 0:00:18.7]} 33. Re3 {[%clk 0:02:01.8]}
33... Ra7 {[%clk 0:00:18.9]} 34. Ra3 {[%clk 0:02:01.5]} 34... Ke7 {[%clk
0:00:19.4]} 35. Kf2 {[%clk 0:01:57.1]} 35... f5 {[%clk 0:00:19.9]} 36. Ke3
{[%clk 0:01:48.3]} 36... g6 {[%clk 0:00:19.8]} 37. Rd2 {[%clk 0:01:48.4]} 37...
Ke6 {[%clk 0:00:19.6]} 38. Kd4 {[%clk 0:01:48.6]} 38... Rda8 {[%clk 0:00:19.9]}
39. Re2+ {[%clk 0:01:47.9]} 39... Kd7 {[%clk 0:00:20.3]} 40. Rae3 {[%clk
0:01:45]} 40... Rxa5 {[%clk 0:00:19.8]} 41. Re7+ {[%clk 0:01:45.6]} 41... Kd8
{[%clk 0:00:20.2]} 42. Rxh7 {[%clk 0:01:42.8]} 42... Ra4+ {[%clk 0:00:20.7]} 43.
Ke5 {[%clk 0:01:42.9]} 43... Rxa2 {[%clk 0:00:20.7]} 44. Rxa2 {[%clk 0:01:38.7]}
44... Rxa2 {[%clk 0:00:21.3]} 45. Kd6 {[%clk 0:01:39.2]} 45... Rxg2 {[%clk
0:00:21]} 46. Kxc6 {[%clk 0:01:39.8]} 46... d4 {[%clk 0:00:21.6]} 47. Kd6 {[%clk
0:01:40]} 47... Kc8 {[%clk 0:00:21.2]} 48. c6 {[%clk 0:01:40.3]} 48... Kb8
{[%clk 0:00:20.3]} 49. Rh8+ {[%clk 0:01:40.4]} 49... Ka7 {[%clk 0:00:20.9]} 50.
c7 {[%clk 0:01:41.3]} 50... Rc2 {[%clk 0:00:21.2]} 51. c8=Q {[%clk 0:01:42]}
51... Rxc8 {[%clk 0:00:21.3]} 52. Rxc8 {[%clk 0:01:42.9]} 52... Kb6 {[%clk
0:00:18]} 53. Rb8+ {[%clk 0:01:42.5]} 53... Ka5 {[%clk 0:00:18.1]} 54. Kc5
{[%clk 0:01:43.2]} 54... d3 {[%clk 0:00:18.3]} 55. Ra8# {[%clk 0:01:42.9]} 1-0

[Event "Early-Titled-Tuesday-Blitz-August-29-2023"]
[Site "Chess.com"]
[Date "2023.08.29"]
[Round "1"]
[White "skkeyan1309"]
[Black "zozik"]
[Result "1/2-1/2"]
[WhiteElo "2678"]
[BlackElo "2385"]
[TimeControl "180+1"]
[EndTime "8:06:18 PDT"]
[Termination "Game drawn by agreement"]

1. d4 {[%clk 0:02:56]} 1... d5 {[%clk 0:02:59.1]} 2. c4 {[%clk 0:02:51.3]} 2...
e6 {[%clk 0:02:58.9]} 3. Nc3 {[%clk 0:02:49.9]} 3... c5 {[%clk 0:02:58]} 4. cxd5
{[%clk 0:02:49.2]} 4... exd5 {[%clk 0:02:57.9]} 5. Nf3 {[%clk 0:02:49.8]} 5...
Nc6 {[%clk 0:02:57.9]} 6. e3 {[%clk 0:02:41.4]} 6... Nf6 {[%clk 0:02:57.6]} 7.
Be2 {[%clk 0:02:42]} 7... Be7 {[%clk 0:02:57.4]} 8. O-O {[%clk 0:02:42.6]} 8...
O-O {[%clk 0:02:57.9]} 9. b3 {[%clk 0:02:43.1]} 9... cxd4 {[%clk 0:02:50.6]} 10.
Nxd4 {[%clk 0:02:43.1]} 10... a6 {[%clk 0:02:43.1]} 11. Bb2 {[%clk 0:02:42.3]}
11... Nxd4 {[%clk 0:02:37.6]} 12. Qxd4 {[%clk 0:02:42]} 12... Be6 {[%clk
0:02:37.6]} 13. Rac1 {[%clk 0:02:39.9]} 13... Qd7 {[%clk 0:02:37.7]} 14. Na4
{[%clk 0:02:38.2]} 14... Rad8 {[%clk 0:02:26.8]} 15. Nc5 {[%clk 0:02:29.4]}
15... Bxc5 {[%clk 0:02:25]} 16. Rxc5 {[%clk 0:02:30.3]} 16... Rc8 {[%clk
0:02:24]} 17. Rfc1 {[%clk 0:02:28.2]} 17... Rxc5 {[%clk 0:02:23.8]} 18. Rxc5
{[%clk 0:02:26.4]} 18... Rc8 {[%clk 0:02:24.3]} 19. Bf3 {[%clk 0:02:22.6]} 19...
Rxc5 {[%clk 0:02:21.1]} 20. Qxc5 {[%clk 0:02:23.5]} 20... Qc6 {[%clk 0:02:20.9]}
21. Qe7 {[%clk 0:02:19.7]} 21... Ne8 {[%clk 0:01:49.5]} 22. h3 {[%clk
0:02:12.7]} 22... h6 {[%clk 0:01:45.7]} 23. Bd4 {[%clk 0:02:00.7]} 23... Nd6
{[%clk 0:01:41.1]} 24. Qd8+ {[%clk 0:01:56]} 24... Kh7 {[%clk 0:01:39.8]} 25.
Be5 {[%clk 0:01:46.4]} 25... Ne4 {[%clk 0:01:33.2]} 26. Bxe4+ {[%clk 0:01:35.4]}
26... dxe4 {[%clk 0:01:32.4]} 27. Kh2 {[%clk 0:01:08.9]} 27... Qc8 {[%clk
0:01:25]} 28. Qd4 {[%clk 0:01:05.2]} 28... Qd7 {[%clk 0:01:16.7]} 29. Qxe4+
{[%clk 0:00:55.7]} 29... Bf5 {[%clk 0:01:16.8]} 30. Qf4 {[%clk 0:00:56.1]} 30...
f6 {[%clk 0:01:16]} 31. Bd4 {[%clk 0:00:56.6]} 31... Bg6 {[%clk 0:01:10.5]} 32.
f3 {[%clk 0:00:50.3]} 32... Qd5 {[%clk 0:01:09.4]} 33. h4 {[%clk 0:00:48.9]}
33... Be8 {[%clk 0:01:07.6]} 34. Qc7 {[%clk 0:00:47.6]} 34... Kg6 {[%clk
0:01:02.8]} 35. g4 {[%clk 0:00:41.7]} 35... Qxf3 {[%clk 0:00:55.7]} 36. Qg3
{[%clk 0:00:38.2]} 36... Qe2+ {[%clk 0:00:53.1]} 37. Qg2 {[%clk 0:00:38.4]}
37... Qxg2+ {[%clk 0:00:50.4]} 38. Kxg2 {[%clk 0:00:39.3]} 38... Bc6+ {[%clk
0:00:49.5]} 1/2-1/2

[Event "Early-Titled-Tuesday-Blitz-August-29-2023"]
[Site "Chess.com"]
[Date "2023.08.29"]
[Round "1"]
[White "Schattman"]
[Black "rezamahdavi2008"]
[Result "0-1"]
[WhiteElo "2416"]
[BlackElo "2752"]
[TimeControl "180+1"]
[EndTime "8:06:20 PDT"]
[Termination "rezamahdavi2008 won on time"]

1. Nf3 {[%clk 0:03:00.9]} 1... Nf6 {[%clk 0:02:59.9]} 2. g3 {[%clk 0:03:00]}
2... g6 {[%clk 0:03:00]} 3. b3 {[%clk 0:03:00.5]} 3... Bg7 {[%clk 0:03:00.9]} 4.
Bb2 {[%clk 0:03:00.8]} 4... d6 {[%clk 0:03:01.6]} 5. d4 {[%clk 0:03:00.3]} 5...
O-O {[%clk 0:03:02.2]} 6. Bg2 {[%clk 0:02:59.5]} 6... c5 {[%clk 0:03:03.1]} 7.
c4 {[%clk 0:02:58.2]} 7... Nc6 {[%clk 0:02:55.7]} 8. O-O {[%clk 0:02:47.1]} 8...
Ne4 {[%clk 0:02:54.8]} 9. Nbd2 {[%clk 0:02:46.6]} 9... Nxd2 {[%clk 0:02:53.5]}
10. Qxd2 {[%clk 0:02:46.4]} 10... Bg4 {[%clk 0:02:51.2]} 11. dxc5 {[%clk
0:02:44.2]} 11... dxc5 {[%clk 0:02:40.4]} 12. Bxg7 {[%clk 0:02:31.1]} 12... Kxg7
{[%clk 0:02:39.6]} 13. Qxd8 {[%clk 0:02:16.2]} 13... Rfxd8 {[%clk 0:02:38.3]}
14. Rfd1 {[%clk 0:02:16.1]} 14... Rab8 {[%clk 0:02:34.6]} 15. h3 {[%clk
0:02:07.7]} 15... Bxf3 {[%clk 0:02:33.9]} 16. Bxf3 {[%clk 0:02:07.8]} 16... Nd4
{[%clk 0:02:34.6]} 17. Kg2 {[%clk 0:02:07.8]} 17... b6 {[%clk 0:02:34.9]} 18. e3
{[%clk 0:02:05]} 18... Nc2 {[%clk 0:02:35.2]} 19. Rac1 {[%clk 0:02:02.6]} 19...
Nb4 {[%clk 0:02:35.5]} 20. a3 {[%clk 0:01:58.1]} 20... Na6 {[%clk 0:02:33]} 21.
h4 {[%clk 0:01:46.5]} 21... Nc7 {[%clk 0:02:29.3]} 22. Bc6 {[%clk 0:01:41.3]}
22... Kf6 {[%clk 0:02:28.5]} 23. Kf3 {[%clk 0:01:40.8]} 23... Ne6 {[%clk
0:02:26.5]} 24. Ke2 {[%clk 0:01:38.7]} 24... Rxd1 {[%clk 0:02:22.3]} 25. Rxd1
{[%clk 0:01:38.1]} 25... Rd8 {[%clk 0:02:23.2]} 26. Rxd8 {[%clk 0:01:26]} 26...
Nxd8 {[%clk 0:02:24.1]} 27. Bd5 {[%clk 0:01:26.2]} 27... e6 {[%clk 0:02:22.9]}
28. Be4 {[%clk 0:01:22.3]} 28... Ke5 {[%clk 0:02:23]} 29. Kd3 {[%clk 0:01:15.3]}
29... f5 {[%clk 0:02:22.4]} 30. f4+ {[%clk 0:01:15]} 30... Kf6 {[%clk
0:02:22.4]} 31. Bf3 {[%clk 0:01:12.9]} 31... e5 {[%clk 0:02:23]} 32. e4 {[%clk
0:01:12]} 32... Ne6 {[%clk 0:02:17.3]} 33. fxe5+ {[%clk 0:01:08.2]} 33... Kxe5
{[%clk 0:02:17.5]} 34. exf5 {[%clk 0:01:08.7]} 34... gxf5 {[%clk 0:02:17.3]} 35.
Bd5 {[%clk 0:01:02]} 35... Nd4 {[%clk 0:02:17.4]} 36. b4 {[%clk 0:00:59.4]}
36... f4 {[%clk 0:02:16.2]} 37. gxf4+ {[%clk 0:00:54]} 37... Kxf4 {[%clk
0:02:17.1]} 38. Bg8 {[%clk 0:00:51.6]} 38... h5 {[%clk 0:02:14.6]} 39. Bf7
{[%clk 0:00:41.5]} 39... Kg4 {[%clk 0:02:13.6]} 40. bxc5 {[%clk 0:00:41.9]}
40... bxc5 {[%clk 0:02:13.6]} 41. Ke4 {[%clk 0:00:40.8]} 41... Kxh4 {[%clk
0:02:14.2]} 42. Kd5 {[%clk 0:00:40.7]} 42... Nb3 {[%clk 0:02:14.4]} 43. Bg6
{[%clk 0:00:40.1]} 43... Kg5 {[%clk 0:02:11.4]} 44. Bc2 {[%clk 0:00:38]} 44...
Nd2 {[%clk 0:02:01.8]} 45. Kxc5 {[%clk 0:00:35.2]} 45... h4 {[%clk 0:02:02.1]}
46. Bh7 {[%clk 0:00:18.6]} 46... h3 {[%clk 0:02:00.6]} 47. Bg8 {[%clk
0:00:18.8]} 47... Ne4+ {[%clk 0:01:55.6]} 48. Kd4 {[%clk 0:00:17.9]} 48... Nf6
{[%clk 0:01:47.4]} 49. Be6 {[%clk 0:00:10.4]} 49... h2 {[%clk 0:01:47.4]} 0-1